bitfinex/quotes_SOLUSD_20260213
["timestamp","ask_amount","ask_price","bid_price","bid_amount"]
[1770996577704,10.6163248,83.61,83.573,3.48762483]
[1770996577912,10.6163248,83.6,83.561,3.48762483]
[1770996578390,10.6163248,83.61,83.561,3.48762483]
[1770996579009,10.6163248,83.61,83.571,3.48762483]
[1770996579724,10.6163248,83.62,83.573,3.48762483]
[1770996579919,46.3763248,83.62,83.581,3.48762483]
[1770996580828,10.6163248,83.61,83.569,45.36762483]
[1770996581005,10.6163248,83.61,83.57,3.48762483]
[1770996581205,10.6163248,83.61,83.571,3.48762483]
[1770996581796,10.6163248,83.6,83.571,3.48762483]
[1770996582000,10.6163248,83.6,83.559,3.48762483]
[1770996582402,10.6163248,83.6,83.56,3.48762483]
[1770996582602,10.6163248,83.62,83.571,3.48762483]
[1770996582820,10.6163248,83.61,83.571,3.48762483]
[1770996583910,22.57661663,83.61,83.571,3.48762483]
[1770996584123,22.57661663,83.61,83.56,10.6163248]
[1770996584124,11.96029183,83.61,83.573,3.48762483]
[1770996584314,22.57661663,83.61,83.573,3.48762483]
[1770996584512,35.78,83.615,83.573,3.48762483]
[1770996584808,11.95929057,83.617,83.573,3.48762483]
[1770996585015,11.95929057,83.617,83.581,3.48762483]
[1770996585227,0.70630437,83.641,83.591,3.48762483]
[1770996585530,35.78,83.642,83.601,3.48762483]
[1770996585834,42.55071499,83.653,83.601,3.48762483]
[1770996585835,29.88535975,83.653,83.613,3.48762483]
[1770996586213,10.6163248,83.65,83.613,3.48762483]
[1770996586415,10.6163248,83.65,83.599,41.86]
[1770996586416,46.4163248,83.68,83.631,3.48762483]
[1770996586620,29.87704792,83.677,83.631,3.48762483]
[1770996586825,41.81674164,83.699,83.641,3.48762483]
[1770996587020,41.81674164,83.699,83.651,3.48762483]
[1770996587215,11.94757404,83.699,83.651,3.48762483]
[1770996587408,11.94757404,83.699,83.661,3.48762483]
[1770996587929,3.73783144,83.659,83.535,143.65236126]
[1770996588109,10.6163248,83.65,83.557,0.3282431]
[1770996588427,244.95174105,83.69,83.536,41.82]
[1770996588428,46.4163248,83.66,83.61,10.6163248]
[1770996588605,10.6163248,83.65,83.602,4.61729252]
[1770996588805,10.6163248,83.63,83.603,41.82]
[1770996589207,10.6163248,83.64,83.603,41.82]
[1770996589402,3.73783144,83.663,83.603,41.82]
[1770996589403,10.6163248,83.65,83.603,41.82]
[1770996589622,3.73783144,83.649,83.603,41.82]
[1770996589823,10.6163248,83.63,83.603,41.82]
[1770996590025,10.6163248,83.63,83.605,3.38802628]
[1770996590223,15.75015988,83.66,83.605,3.38802628]
[1770996590431,3.79701621,83.649,83.604,41.86402564]
[1770996590646,10.6163248,83.65,83.604,41.86402564]
[1770996591411,11.94757404,83.699,83.611,4.61729252]
[1770996591609,10.6163248,83.66,83.615,4.61729252]
[1770996591813,0.1,83.7,83.632,5.36086188]
[1770996592032,0.1,83.7,83.652,4.61729252]
[1770996592333,6.25084764,83.713,83.664,4.61729252]
[1770996592538,10.6163248,83.7,83.653,41.84]
[1770996592713,11.94357853,83.727,83.653,41.84]
[1770996592714,10.6163248,83.69,83.653,41.84]
[1770996593029,10.6163248,83.68,83.653,41.84]
[1770996593332,10.6163248,83.67,83.653,41.84]
[1770996593533,3.79701621,83.726,83.653,41.84]
[1770996593722,3.79701621,83.704,83.653,41.84]
[1770996593926,3.79701621,83.704,83.654,41.84]
[1770996594125,3.79701621,83.704,83.655,11.9538581]
[1770996594335,35.72,83.736,83.654,41.84]
[1770996594336,10.6163248,83.69,83.654,41.84]
[1770996594527,10.6163248,83.68,83.654,41.84]
[1770996594833,10.6163248,83.68,83.654,53.79388236]
[1770996595638,3.79701621,83.703,83.654,83.67888487]
[1770996595837,3.826669,83.74,83.654,83.67888487]
[1770996596026,3.826669,83.711,83.661,41.8355028]
[1770996596423,3.826669,83.746,83.69,10.6163248]
[1770996596621,3.826669,83.746,83.683,4.61729252]
[1770996596622,3.826669,83.746,83.7,10.6163248]
[1770996596828,3.826669,83.746,83.691,41.84]
[1770996597133,41.77757617,83.777,83.691,41.84]
[1770996597134,14.4429938,83.72,83.691,41.84]
[1770996597332,10.6163248,83.71,83.691,41.84]
[1770996597635,292.44303326,83.777,83.691,41.84]
[1770996597636,3.826669,83.733,83.691,41.84]
[1770996597936,3.826669,83.757,83.71,10.6163248]
[1770996598237,3.826669,83.749,83.705,11.94665924]
[1770996598428,3.826669,83.762,83.71,10.67368914]
[1770996598742,10.6163248,83.75,83.705,11.94665924]
[1770996598928,10.6163248,83.75,83.7,12.00474316]
[1770996598929,3.826669,83.749,83.7,12.00474316]
[1770996599235,41.78555651,83.761,83.698,41.82]
[1770996599236,3.73783144,83.743,83.698,41.82]
[1770996599436,10.6163248,83.74,83.698,41.82]
[1770996599824,10.6163248,83.74,83.698,45.30762483]
[1770996600028,10.6163248,83.74,83.699,45.30762483]
[1770996600224,11.94143918,83.742,83.7,11.9474313]
[1770996600428,3.73783144,83.759,83.711,3.48762483]
[1770996600627,3.86709044,83.772,83.713,3.48762483]
[1770996600939,11.93702028,83.773,83.7,41.81600955]
[1770996600940,3.86709044,83.764,83.72,10.6163248]
[1770996601242,3.86709044,83.739,83.693,11.94837907]
[1770996601540,3.86709044,83.752,83.71,10.6163248]
[1770996601746,3.86709044,83.739,83.693,11.94837907]
[1770996602037,11.94088839,83.746,83.701,11.94728856]
[1770996602241,11.93997753,83.753,83.711,3.60169181]
[1770996602425,11.93816032,83.765,83.72,10.6163248]
[1770996602629,3.86709044,83.777,83.731,3.60169181]
[1770996602829,1.42911505,83.782,83.77,10.6163248]
[1770996603043,1.42911505,83.782,83.722,5.36086188]
[1770996603044,3.90828743,83.847,83.771,41.78]
[1770996603346,47.6650103,83.919,83.83,2.74068935]
[1770996603639,16.84623296,83.93,83.861,2.74068935]
[1770996603944,10.6163248,83.91,83.834,2.74068935]
[1770996604244,11.92051401,83.889,83.84,10.6163248]
[1770996604544,29.79382671,83.91,83.85,10.6163248]
[1770996604841,41.70688401,83.919,83.85,10.6163248]
[1770996605044,10.6163248,83.88,83.813,2.7092529]
[1770996605235,35.56,83.879,83.812,11.93146566]
[1770996605433,3.86709044,83.849,83.81,10.6163248]
[1770996605631,35.56,83.879,83.796,41.74]
[1770996605632,3.86709044,83.829,83.796,41.74]
[1770996605831,3.86709044,83.839,83.797,11.93360144]
[1770996606149,3.86709044,83.839,83.8,10.6163248]
[1770996606324,3.86709044,83.809,83.774,41.72]
[1770996606529,3.86709044,83.809,83.754,2.64745909]
[1770996606530,3.86709044,83.809,83.77,10.6163248]
[1770996606744,10.6163248,83.79,83.75,2.64745909]
[1770996607047,10.6163248,83.82,83.741,2.64745909]
[1770996607048,3.86709044,83.819,83.741,2.64745909]
[1770996607245,3.86709044,83.833,83.79,10.6163248]
[1770996607438,3.86709044,83.884,83.82,10.6163248]
[1770996607639,3.86709044,83.869,83.82,10.6163248]
[1770996607940,41.72378851,83.885,83.793,41.7]
[1770996607941,3.86709044,83.839,83.793,41.7]
[1770996608129,232.46110743,83.885,83.781,2.61709348]
[1770996608130,3.86709044,83.856,83.811,11.93160802]
[1770996608322,10.6163248,83.85,83.81,10.6163248]
[1770996608521,10.6163248,83.84,83.761,2.60757897]
[1770996608726,107.32812592,83.855,83.77,10.6163248]
[1770996608727,3.86709044,83.819,83.77,10.6163248]
[1770996608944,10.6163248,83.83,83.79,10.6163248]
[1770996609247,3.86709044,83.809,83.762,41.7]
[1770996609546,10.6163248,83.82,83.77,10.6163248]
[1770996609843,10.6163248,83.8,83.762,41.7]
[1770996610032,3.86709044,83.823,83.79,10.6163248]
[1770996610228,47.69822022,83.861,83.78,10.6163248]
[1770996610229,10.6163248,83.82,83.78,10.6163248]
[1770996610537,11.92904603,83.829,83.79,10.6163248]
[1770996610841,11.92620067,83.849,83.81,10.6163248]
[1770996611140,3.86709044,83.839,83.783,2.58887654]
[1770996611344,11.92620067,83.849,83.81,10.6163248]
[1770996611645,3.86709044,83.848,83.783,2.58887654]
[1770996611852,3.86709044,83.848,83.82,10.6163248]
[1770996612141,10.6163248,83.86,83.821,11.93018455]
[1770996612347,35.44,83.877,83.84,10.6163248]
[1770996612348,47.36231059,83.877,83.84,10.6163248]
[1770996612651,3.86709044,83.869,83.82,52.2563248]
[1770996612829,11.92231059,83.877,83.84,10.6163248]
[1770996613029,10.6163248,83.87,83.83,10.6163248]
[1770996613229,10.6163248,83.87,83.807,29.83016515]
[1770996613230,10.6163248,83.85,83.81,10.6163248]
[1770996613453,3.86709044,83.829,83.798,41.62]
[1770996613741,3.86709044,83.839,83.8,10.6163248]
[1770996613942,10.6163248,83.83,83.79,10.6163248]
[1770996614135,35.44,83.861,83.79,10.6163248]
[1770996614136,10.6163248,83.82,83.79,10.6163248]
[1770996614442,10.6163248,83.82,83.78,52.2363248]
[1770996614847,3.86709044,83.829,83.79,10.6163248]
[1770996615045,3.86709044,83.828,83.79,10.6163248]
[1770996615531,3.86709044,83.828,83.779,11.93616538]
[1770996615729,3.86709044,83.828,83.79,10.6163248]
[1770996616242,11.92762318,83.839,83.81,10.6163248]
[1770996616445,3.86709044,83.843,83.776,41.62]
[1770996616446,11.92584034,83.852,83.82,10.6163248]
[1770996617027,3.86709044,83.849,83.81,10.6163248]
[1770996617242,11.92584034,83.852,83.8,10.6163248]
[1770996617243,3.86709044,83.839,83.8,10.6163248]
[1770996617446,15.79293078,83.852,83.81,10.6163248]
[1770996617645,3.86709044,83.874,83.811,2.52671847]
[1770996617845,11.92278802,83.873,83.84,10.6163248]
[1770996618038,3.86709044,83.874,83.84,10.6163248]
[1770996618244,3.86709044,83.869,83.83,10.6163248]
[1770996618445,3.86709044,83.869,83.786,95.48134532]
[1770996618446,3.86709044,83.869,83.84,10.6163248]
[1770996618641,11.92201279,83.879,83.85,10.6163248]
[1770996618852,3.86709044,83.92,83.86,10.6163248]
[1770996619042,3.86709044,83.919,83.88,10.6163248]
[1770996619352,3.86709044,83.919,83.89,10.6163248]
[1770996619549,3.86709044,83.899,83.85,10.6163248]
[1770996619847,10.6163248,83.89,83.85,10.6163248]
[1770996620054,10.6163248,83.87,83.83,10.6163248]
[1770996620229,3.86709044,83.894,83.86,10.6163248]
[1770996620434,112.08986712,83.94,83.86,10.6163248]
[1770996620435,11.91795678,83.907,83.86,10.6163248]
[1770996620638,3.86709044,83.899,83.86,10.6163248]
[1770996620837,3.86709044,83.899,83.85,10.6163248]
[1770996621050,3.86709044,83.899,83.86,10.6163248]
[1770996621351,3.86709044,83.913,83.88,10.6163248]
[1770996621532,3.86709044,83.918,83.854,2.4933923]
[1770996621734,3.86709044,83.909,83.87,10.6163248]
[1770996621929,3.86709044,83.909,83.88,10.6163248]
[1770996622136,41.70696367,83.919,83.88,10.6163248]
[1770996622541,10.6163248,83.91,83.873,11.92276321]
[1770996623056,11.91633223,83.919,83.867,11.92353266]
[1770996623057,3.86709044,83.918,83.867,11.92353266]
[1770996623246,3.86709044,83.909,83.87,10.6163248]
[1770996623755,10.6163248,83.9,83.86,10.6163248]
[1770996623934,10.6163248,83.9,83.823,47.7194456]
[1770996623935,3.86709044,83.889,83.841,2.47729789]
[1770996624137,11.92051401,83.889,83.836,11.92805]
[1770996624346,10.6163248,83.89,83.85,10.6163248]
[1770996624544,35.42,83.895,83.829,11.92890685]
[1770996624545,3.86709044,83.879,83.829,11.92890685]
[1770996624750,10.6163248,83.88,83.84,10.6163248]
[1770996624946,10.6163248,83.88,83.829,11.92890685]
[1770996624947,3.86709044,83.859,83.82,10.6163248]
[1770996625139,3.86709044,83.859,83.766,47.75154057]
[1770996625140,10.6163248,83.83,83.775,2.46938907]
[1770996625341,10.6163248,83.82,83.78,10.6163248]
[1770996625663,10.6163248,83.83,83.79,10.6163248]
[1770996625842,10.6163248,83.81,83.771,2.46157109]
[1770996626041,3.86709044,83.834,83.771,2.46157109]
[1770996626042,35.4,83.827,83.79,10.6163248]
[1770996626448,3.86709044,83.851,83.8,10.6163248]
[1770996626651,14.48341524,83.86,83.82,10.6163248]
[1770996626850,59.60185957,83.89,83.84,10.6163248]
[1770996626851,10.6163248,83.87,83.84,10.6163248]
[1770996627155,41.72130169,83.89,83.84,10.6163248]
[1770996627156,3.86709044,83.889,83.85,10.6163248]
[1770996627462,10.6163248,83.88,83.84,10.6163248]
[1770996627646,3.86709044,83.859,83.81,2.44620348]
[1770996627848,10.6163248,83.83,83.783,41.42]
[1770996628176,35.4,83.844,83.81,10.6163248]
[1770996628361,10.6163248,83.86,83.82,10.6163248]
[1770996628535,10.6163248,83.86,83.783,142.87248137]
[1770996628536,11.92094032,83.886,83.84,10.6163248]
[1770996628736,47.65884493,83.93,83.821,11.93018455]
[1770996628737,11.91909319,83.899,83.86,10.6163248]
[1770996629170,3.86709044,83.902,83.87,10.6163248]
[1770996629346,10.6163248,83.9,83.86,10.6163248]
[1770996629660,11.91880907,83.901,83.87,10.6163248]
[1770996629839,11.91818396,83.906,83.87,10.6163248]
[1770996630046,11.91742728,83.911,83.87,10.6163248]
[1770996630563,11.9167786,83.916,83.88,10.6163248]
[1770996630748,11.9167786,83.916,83.89,10.6163248]
[1770996631058,10.6163248,83.91,83.87,10.6163248]
[1770996631363,3.50965009,83.909,83.87,10.6163248]
[1770996631556,11.9167786,83.916,83.88,10.6163248]
[1770996632561,107.20462448,83.952,83.88,10.6163248]
[1770996632562,3.50965009,83.956,83.9,10.6163248]
[1770996632743,3.50965009,83.959,83.91,10.6163248]
[1770996633364,3.50965009,83.949,83.898,2.15386326]
[1770996633660,3.50965009,83.955,83.92,10.6163248]
[1770996633861,3.50965009,83.968,83.93,10.6163248]
[1770996634242,11.90915695,83.969,83.93,10.6163248]
[1770996634447,3.50965009,83.976,83.94,10.6163248]
[1770996634656,3.50965009,83.959,83.903,2.13985226]
[1770996634864,3.50965009,83.959,83.904,41.71434019]
[1770996635166,3.50965009,83.959,83.92,10.6163248]
[1770996635566,3.50965009,83.959,83.903,2.13985226]
[1770996635772,3.50965009,83.939,83.9,10.6163248]
[1770996635977,3.50965009,83.939,83.89,12.74929203]
[1770996636268,3.50965009,83.936,83.9,10.6163248]
[1770996636452,11.91199418,83.949,83.91,10.6163248]
[1770996637274,11.91199418,83.949,83.92,10.6163248]
[1770996637683,11.91140549,83.954,83.911,41.71086031]
[1770996637975,35.38,83.963,83.92,10.6163248]
[1770996638160,35.38,83.963,83.905,11.91815097]
[1770996638470,35.38,83.962,83.902,2.1194335]
[1770996638658,10.6163248,83.94,83.902,2.1194335]
[1770996638977,10.53548441,83.93,83.902,2.1194335]
[1770996639275,3.49377742,83.919,83.857,2.10615702]
[1770996639572,244.16097948,83.961,83.87,10.53548441]
[1770996639573,3.49377742,83.909,83.87,10.53548441]
[1770996639952,3.49377742,83.899,83.853,11.92550575]
[1770996640474,3.49377742,83.879,83.84,10.53548441]
[1770996640680,3.49377742,83.879,83.841,11.92733865]
[1770996640973,3.49377742,83.893,83.846,2.09313251]
[1770996641179,3.49377742,83.919,83.88,10.53548441]
[1770996641550,3.49377742,83.909,83.854,41.2]
[1770996641875,3.49377742,83.909,83.819,5.36086188]
[1770996641876,3.49377742,83.879,83.84,10.53548441]
[1770996642052,3.49377742,83.909,83.842,2.08673224]
[1770996642249,10.53548441,83.92,83.88,10.53548441]
[1770996642457,10.53548441,83.92,83.843,41.2]
[1770996642458,11.91923526,83.898,83.851,11.9259162]
[1770996642660,10.53548441,83.88,83.843,41.2]
[1770996642869,10.53548441,83.88,83.843,11.92698695]
[1770996642870,3.49377742,83.879,83.843,11.92698695]
[1770996643076,3.49377742,83.879,83.84,10.53548441]
[1770996643273,3.49377742,83.869,83.824,11.9296805]
[1770996643478,3.49377742,83.869,83.83,10.53548441]
[1770996643689,3.49377742,83.879,83.83,10.53548441]
[1770996644184,3.49377742,83.879,83.84,10.53548441]
[1770996644364,3.49377742,83.879,83.831,2.06796913]
[1770996644559,3.49377742,83.879,83.84,10.53548441]
[1770996644756,3.49377742,83.879,83.832,11.92861914]
[1770996644968,3.49377742,83.869,83.82,10.53548441]
[1770996645175,3.49377742,83.869,83.83,10.53548441]
[1770996645380,3.49377742,83.882,83.84,10.53548441]
[1770996645577,10.53548441,83.88,83.84,10.53548441]
[1770996645784,3.49377742,83.879,83.83,10.53548441]
[1770996645956,3.49377742,83.879,83.84,10.53548441]
[1770996646280,3.49377742,83.869,83.818,11.93061156]
[1770996646458,35.34,83.868,83.83,10.53548441]
[1770996646659,11.923641,83.867,83.831,11.92876143]
[1770996647766,11.923641,83.867,83.83,10.53548441]
[1770996647967,3.49377742,83.866,83.83,10.53548441]
[1770996648193,3.49377742,83.866,83.808,41.16]
[1770996648374,3.49377742,83.839,83.801,11.93303182]
[1770996648570,3.49377742,83.85,83.81,10.53548441]
[1770996648768,11.92620067,83.849,83.82,10.53548441]
[1770996648960,10.53548441,83.86,83.799,4.61729252]
[1770996648961,3.49377742,83.863,83.83,10.53548441]
[1770996649361,3.49377742,83.863,83.813,2.04394209]
[1770996649562,3.49377742,83.861,83.83,10.53548441]
[1770996649971,10.53548441,83.88,83.799,4.61729252]
[1770996649972,15.4165289,83.874,83.85,10.53548441]
[1770996650379,3.49377742,83.873,83.83,10.53548441]
[1770996650582,3.49377742,83.869,83.831,11.92876143]
[1770996650785,3.49377742,83.869,83.84,10.53548441]
[1770996651370,3.49377742,83.869,83.83,10.53548441]
[1770996651585,3.49377742,83.869,83.82,10.53548441]
[1770996651766,3.49377742,83.859,83.81,10.53548441]
[1770996651967,3.49377742,83.859,83.82,10.53548441]
[1770996652166,3.49377742,83.857,83.809,11.93189275]
[1770996652366,3.49377742,83.855,83.81,10.53548441]
[1770996652596,41.73921339,83.854,83.81,10.53548441]
[1770996652791,3.49377742,83.853,83.811,11.93160802]
[1770996653291,3.49377742,83.853,83.81,10.53548441]
[1770996653487,3.49377742,83.853,83.82,10.53548441]
[1770996653879,3.49377742,83.853,83.806,11.9322229]
[1770996654185,3.49377742,83.853,83.82,10.53548441]
[1770996654368,3.49377742,83.869,83.83,10.53548441]
[1770996654571,35.4,83.864,83.84,10.53548441]
[1770996654763,11.923782,83.867,83.84,10.53548441]
[1770996655184,11.923782,83.867,83.831,11.92876143]
[1770996655688,11.923782,83.867,83.84,10.53548441]
[1770996655887,3.49377742,83.869,83.841,11.92733865]
[1770996656095,35.42,83.881,83.85,10.53548441]
[1770996656297,3.49377742,83.908,83.87,10.53548441]
[1770996656475,3.49377742,83.899,83.85,10.53548441]
[1770996656672,3.49377742,83.889,83.841,11.92733865]
[1770996656886,3.49377742,83.889,83.85,10.53548441]
[1770996657111,3.49377742,83.903,83.851,1.99909408]
[1770996657272,3.49377742,83.903,83.87,10.53548441]
[1770996657680,3.49377742,83.903,83.88,10.53548441]
[1770996657880,3.49377742,83.903,83.871,11.92307233]
[1770996658074,3.49377742,83.903,83.858,11.92492069]
[1770996658392,11.91866701,83.902,83.87,10.53548441]
[1770996658973,3.49377742,83.921,83.89,10.53548441]
[1770996659180,3.49377742,83.938,83.89,10.53548441]
[1770996659394,3.49377742,83.936,83.9,10.53548441]
[1770996660190,3.49377742,83.934,83.9,10.53548441]
[1770996660397,3.49377742,83.929,83.886,11.92082868]
[1770996660708,47.64514448,83.954,83.886,11.92082868]
[1770996660709,3.55621434,83.959,83.92,10.53548441]
[1770996660902,47.60638394,84.023,83.886,71.52553029]
[1770996660903,3.55621434,83.999,83.951,1.97309743]
[1770996661072,3.55621434,83.999,83.97,10.53548441]
[1770996661271,1.0,84.0,83.97,10.53548441]
[1770996661491,1.0,84.0,83.98,10.53548441]
[1770996661797,1.0,84.0,83.97,10.53548441]
[1770996662181,1.0,84.0,83.971,11.9088733]
[1770996662895,3.03356181,83.989,83.971,11.9088733]
[1770996663582,11.89824619,84.046,83.98,10.53548441]
[1770996663782,11.89824619,84.046,83.971,119.088733]
[1770996663783,10.53548441,84.04,83.971,41.68105655]
[1770996663995,3.65639151,84.039,83.972,40.96]
[1770996664296,3.65639151,84.019,83.972,40.96]
[1770996664501,41.64386168,84.046,84.0,10.53548441]
[1770996664502,10.53548441,84.04,84.0,10.53548441]
[1770996664679,3.65639151,84.019,83.98,10.53548441]
[1770996664875,35.38,84.021,83.96,10.53548441]
[1770996665078,3.65639151,84.009,83.96,10.53548441]
[1770996665278,184.42281605,84.046,83.946,40.96]
[1770996665279,3.65639151,83.999,83.946,40.96]
[1770996665478,3.65639151,83.989,83.95,10.53548441]
[1770996666011,59.50191521,84.031,83.921,40.94]
[1770996666012,3.65639151,84.002,83.96,10.53548441]
[1770996666216,3.65639151,83.999,83.925,9.9781544]
[1770996666510,3.65639151,83.999,83.96,10.53548441]
[1770996666718,3.65639151,83.999,83.95,10.53548441]
[1770996667006,3.65639151,83.979,83.93,10.53548441]
[1770996667179,10.53548441,83.99,83.95,10.53548441]
[1770996667517,35.36,83.996,83.94,10.53548441]
[1770996667518,3.65639151,83.987,83.94,10.53548441]
[1770996667815,3.65639151,83.949,83.9,10.53548441]
[1770996667980,3.65639151,83.949,83.92,10.53548441]
[1770996668181,35.36,83.956,83.884,4.61729252]
[1770996668404,3.65639151,83.962,83.93,10.53548441]
[1770996668707,3.65639151,83.976,83.94,10.53548441]
[1770996668881,41.67261989,83.988,83.905,40.92]
[1770996668882,10.53548441,83.96,83.905,40.92]
[1770996669078,3.65639151,83.987,83.93,10.53548441]
[1770996669283,47.60318669,84.028,83.96,10.53548441]
[1770996669284,15.56129513,83.999,83.96,10.53548441]
[1770996669530,15.56129513,83.999,83.97,10.53548441]
[1770996669823,3.65639151,83.998,83.96,10.53548441]
[1770996670111,3.65639151,83.989,83.95,10.53548441]
[1770996670502,3.65639151,83.979,83.935,11.91393586]
[1770996670806,3.65639151,83.977,83.935,11.91393586]
[1770996671312,41.66716269,83.999,83.896,3.35101515]
[1770996671313,3.55621434,83.949,83.896,3.35101515]
[1770996671624,47.25213608,83.948,83.897,3.35101515]
[1770996671915,47.25213608,83.948,83.91,10.53548441]
[1770996672218,11.91100861,83.956,83.92,10.53548441]
[1770996672406,3.55621434,83.979,83.94,10.53548441]
[1770996672906,3.55621434,83.969,83.911,3.35101515]
[1770996673115,3.55621434,83.959,83.92,10.53548441]
[1770996673613,3.55621434,83.957,83.911,3.35101515]
[1770996673918,3.55621434,83.969,83.911,41.71086031]
[1770996674097,3.55621434,83.969,83.92,10.53548441]
[1770996674302,3.55621434,83.969,83.93,10.53548441]
[1770996674596,3.55621434,83.969,83.921,3.35101515]
[1770996674812,11.90830604,83.975,83.94,10.53548441]
[1770996675115,3.55621434,83.969,83.93,10.53548441]
[1770996675633,3.55621434,83.969,83.921,3.35101515]
[1770996675795,11.90929878,83.968,83.93,10.53548441]
[1770996675995,3.55621434,83.967,83.93,10.53548441]
[1770996676626,3.55621434,83.967,83.923,3.35101515]
[1770996676794,3.55621434,83.967,83.93,10.53548441]
[1770996677005,11.90929878,83.968,83.93,10.53548441]
[1770996677209,41.68254573,83.968,83.93,10.53548441]
[1770996677519,11.90929878,83.968,83.931,3.35101515]
[1770996678116,3.55621434,83.969,83.93,10.53548441]
[1770996678314,3.55621434,83.969,83.94,10.53548441]
[1770996678516,3.55621434,83.969,83.931,11.91454885]
[1770996678919,3.55621434,83.98,83.94,10.53548441]
[1770996679105,3.55621434,83.979,83.94,10.53548441]
[1770996680323,11.90788063,83.978,83.941,11.91312945]
[1770996680521,35.44,83.986,83.95,10.53548441]
[1770996680737,14.09169875,83.98,83.942,3.35101515]
[1770996680918,3.55621434,83.98,83.942,3.35101515]
[1770996681129,3.55621434,83.979,83.941,11.91312945]
[1770996681435,3.55621434,83.969,83.94,10.53548441]
[1770996681603,10.53548441,83.95,83.898,3.35101515]
[1770996681802,3.55621434,83.961,83.911,3.35101515]
[1770996682011,11.90670147,83.987,83.941,3.35101515]
[1770996682012,35.46,83.973,83.941,3.35101515]
[1770996682210,11.90873148,83.972,83.941,3.35101515]
[1770996682518,11.90873148,83.972,83.94,10.53548441]
[1770996682715,3.55621434,83.971,83.933,11.91426377]
[1770996682902,3.55621434,83.959,83.917,40.78]
[1770996683105,3.55621434,83.939,83.9,10.53548441]
[1770996683333,3.55621434,83.937,83.892,3.35101515]
[1770996683538,3.55621434,83.929,83.89,10.53548441]
[1770996684212,3.55621434,83.909,83.87,3.34099821]
[1770996684421,35.46,83.908,83.88,10.53548441]
[1770996684620,35.48,83.914,83.89,10.53548441]
[1770996684930,35.48,83.914,83.88,10.53548441]
[1770996685343,3.55621434,83.913,83.872,3.32271369]
[1770996685516,3.55621434,83.913,83.88,10.53548441]
[1770996685838,35.48,83.912,83.88,10.53548441]
[1770996686221,35.48,83.912,83.872,3.32271369]
[1770996686443,35.5,83.917,83.88,10.53548441]
[1770996686734,35.5,83.917,83.874,3.28677229]
[1770996686908,3.55621434,83.909,83.873,11.92278802]
[1770996687427,11.91639457,83.918,83.88,10.53548441]
[1770996687606,35.52,83.917,83.88,10.53548441]
[1770996688251,3.55621434,83.909,83.856,3.26911061]
[1770996688408,3.55621434,83.889,83.849,3.25165179]
[1770996688608,10.53548441,83.88,83.841,3.25165179]
[1770996689034,3.55621434,83.889,83.841,3.25165179]
[1770996689333,3.55621434,83.889,83.85,10.53548441]
[1770996689530,3.55621434,83.879,83.84,22.46291784]
[1770996690422,47.66809999,83.914,83.84,22.46291784]
[1770996690423,15.47630207,83.892,83.86,10.53548441]
[1770996690628,71.6093965,84.047,83.88,10.53548441]
[1770996690629,3.277366,83.929,83.88,10.53548441]
[1770996690831,11.91357874,83.938,83.9,10.53548441]
[1770996691013,11.90915695,83.969,83.93,13.63816651]
[1770996691212,9.40471275,83.97,83.95,10.53548441]
[1770996691425,3.42844992,84.031,83.963,4.61729252]
[1770996691732,3.42844992,84.031,84.0,10.53548441]
[1770996691907,3.42844992,84.029,83.99,10.53548441]
[1770996692110,3.42844992,84.029,83.98,10.53548441]
[1770996692330,41.6527824,84.028,83.979,40.72]
[1770996692533,10.53548441,83.99,83.95,10.53548441]
[1770996692730,3.42844992,84.013,83.97,10.53548441]
[1770996692933,3.42844992,84.027,83.99,10.53548441]
[1770996693751,3.42844992,84.04,84.0,10.53548441]
[1770996693919,3.42844992,84.029,83.98,10.53548441]
[1770996694120,3.42844992,84.02,83.98,10.53548441]
[1770996694425,3.42844992,84.019,83.99,10.53548441]
[1770996694619,10.53548441,84.05,84.01,10.53548441]
[1770996694919,47.56229194,84.101,83.979,9.9781544]
[1770996694920,3.42844992,84.039,84.0,10.53548441]
[1770996695228,3.42844992,84.029,83.98,10.53548441]
[1770996695733,3.42844992,84.019,83.98,10.53548441]
[1770996695919,3.42844992,84.019,83.974,11.90844785]
[1770996696415,3.42844992,84.019,83.97,10.53548441]
[1770996696416,11.90362822,84.008,83.97,10.53548441]
[1770996696615,15.33207814,84.008,83.97,10.53548441]
[1770996696832,3.42844992,84.007,83.964,11.90972946]
[1770996697437,3.42844992,84.007,83.93,47.6582355]
[1770996697438,3.42844992,83.999,83.96,10.53548441]
[1770996697951,3.42844992,83.999,83.97,10.53548441]
[1770996698143,3.42844992,83.999,83.96,10.53548441]
[1770996698524,3.42844992,83.999,83.97,10.53548441]
[1770996698725,3.42844992,83.998,83.961,11.91029168]
[1770996699049,3.42844992,83.998,83.96,10.51765916]
[1770996699224,41.66722393,83.999,83.94,10.51765916]
[1770996699225,3.42844992,83.989,83.94,10.51765916]
[1770996699427,3.42844992,83.979,83.891,47.68091928]
[1770996699647,3.42844992,83.959,83.891,29.80057455]